[Event "DSAM Bad Wildungen 2024"]
[Site "Bad Wildungen"]
[Date "2024.08.02"]
[Round "4.8"]
[White "Bartelt, Max Peter"]
[Black "Kamp, Adrian"]
[Result "1/2-1/2"]
[Annotator "ChessBase"]
[ECO "D02"]
[WhiteElo "2069"]
[BlackElo "2120"]
[PlyCount "37"]
[EventDate "2024.07.31"]
[EventCountry "GER"]
[SourceTitle "playchess.com"]
[Source "ChessBase"]
[SourceQuality "1"]
[TimeControl "40/5400+30:900+30"]

1. d4 {[%emt 0:00:04]} d5 {[%emt 0:00:06]} 2. Bf4 {[%emt 0:00:30]} Nf6 {[%emt 0:00:30]} 3. e3 {[%emt 0:00:30]} g6 {[%emt 0:00:30]} 4. Nf3 {[%emt 0:00:30]} Bg7 {[%emt 0:00:30]} 5. Bd3 {[%emt 0:00:30]} O-O {[%emt 0:00:30]} 6. O-O {[%emt 0:00:30]} c5 {[%emt 0:00:30]} 7. c3 {[%emt 0:00:30]} Nc6 {[%emt 0:00:30]} 8. Nbd2 {[%emt 0:00:30]} Nh5 {[%emt 0:00:30]} 9. Bg5 {[%emt 0:00:30]} h6 {[%emt 0:00:30]} 10. Bh4 {[%emt 0:00:30]} Qb6 {[%emt 0:00:30]} 11. Rb1 {[%emt 0:00:30]} e5 {[%emt 0:00:30]} 12. dxe5 {[%emt 0:00:30]} Nxe5 {[%emt 0:00:30]} 13. Nxe5 {[%emt 0:00:30]} Bxe5 {[%emt 0:00:30]} 14. Be2 {[%emt 0:00:30]} Bf6 {[%emt 0:00:30]} 15. Qa4 {[%emt 0:00:30]} Ng7 {[%emt 0:00:30]} 16. Bxf6 {[%emt 0:00:30]} Qxf6 {[%emt 0:00:30]} 17. Bf3 {[%emt 0:00:30]} Be6 {[%emt 0:00:30]} 18. e4 {[%emt 0:00:30]} Rfd8 {[%emt 0:00:30]} 19. Rbd1 {[%emt 0:00:30]} 1/2-1/2

[Event "DSAM Bad Wildungen 2024"]
[Site "Bad Wildungen"]
[Date "2024.08.02"]
[Round "4.9"]
[White "Menzel, Maximilian"]
[Black "Herter, Arne"]
[Result "0-1"]
[Annotator "ChessBase"]
[ECO "A49"]
[WhiteElo "2108"]
[BlackElo "2065"]
[PlyCount "61"]
[EventDate "2024.07.31"]
[EventCountry "GER"]
[SourceTitle "playchess.com"]
[Source "ChessBase"]
[SourceQuality "1"]
[TimeControl "40/5400+30:900+30"]

1. d4 {[%emt 0:00:06]} Nf6 {[%emt 0:00:10]} 2. Nf3 {[%emt 0:00:03]} g6 {[%emt 0:00:09]} 3. g3 {[%emt 0:00:06]} Bg7 {[%emt 0:00:05]} 4. Bg2 {[%emt 0:00:03]} O-O {[%emt 0:00:09]} 5. O-O {[%emt 0:00:05]} d6 {[%emt 0:00:04]} 6. b3 {[%emt 0:00:05]} c5 {[%emt 0:02:30]} 7. Bb2 {[%emt 0:00:15]} Nc6 {[%emt 0:01:33]} 8. d5 {[%emt 0:00:10]} Nb4 {[%emt 0:06:59]} 9. c4 {[%emt 0:00:39]} Bd7 {[%emt 0:02:17]} 10. a3 {[%emt 0:04:32]} Na6 {[%emt 0:00:10]} 11. Ne1 {[%emt 0:12:39]} b5 {[%emt 0:05:24]} 12. Nd2 {[%emt 0:02:05]} Rb8 {[%emt 0:08:35]} 13. Nd3 {[%emt 0:03:18]} Nc7 {[%emt 0:05:56]} 14. e4 {[%emt 0:02:28]} e6 {[%emt 0:04:30]} 15. e5 {[%emt 0:16:36]} dxe5 {[%emt 0:03:11]} 16. Bxe5 {[%emt 0:05:05]} bxc4 {[%emt 0:22:19]} 17. Nxc5 {[%emt 0:04:50]} Nfxd5 {[%emt 0:10:22]} 18. Bxg7 {[%emt 0:13:26]} Kxg7 {[%emt 0:00:13]} 19. bxc4 {[%emt 0:00:53]} Nf6 {[%emt 0:11:39]} 20. Qc2 {[%emt 0:01:30]} Qe7 {[%emt 0:08:01]} 21. Ndb3 {[%emt 0:32:06]} e5 {[%emt 0:02:05]} 22. Nxd7 {[%emt 0:00:00]} Nxd7 {[%emt 0:00:06]} 23. c5 {[%emt 0:00:00]} Qe6 {[%emt 0:01:34]} 24. c6 {[%emt 0:00:00]} Qxb3 {[%emt 0:00:37]} 25. Qxb3 {[%emt 0:00:00]} Rxb3 {[%emt 0:00:02]} 26. cxd7 {[%emt 0:00:00]} Rd8 {[%emt 0:02:07]} 27. Rfd1 {[%emt 0:00:00]} Kf6 {[%emt 0:00:44]} 28. f4 {[%emt 0:00:00]} exf4 {[%emt 0:01:33]} 29. gxf4 {[%emt 0:00:00]} Ne6 {[%emt 0:00:15]} 30. Bd5 {[%emt 0:03:10]} Rb6 {[%emt 0:00:50]} 31. Bc4 {[%emt 0:01:50]} 0-1

[Event "DSAM Bad Wildungen 2024"]
[Site "Bad Wildungen"]
[Date "2024.08.02"]
[Round "4.11"]
[White "Musiienko, Tymur"]
[Black "Vladov, Arsenii"]
[Result "1-0"]
[Annotator "ChessBase"]
[ECO "B07"]
[WhiteElo "2093"]
[BlackElo "2063"]
[PlyCount "137"]
[EventDate "2024.07.31"]
[EventCountry "GER"]
[SourceTitle "playchess.com"]
[Source "ChessBase"]
[SourceQuality "1"]
[TimeControl "40/5400+30:900+30"]

1. e4 {[%emt 0:00:06]} d6 {[%emt 0:00:03]} 2. d4 {[%emt 0:00:29]} Nf6 {[%emt 0:00:04]} 3. Nc3 {[%emt 0:00:11]} c6 {[%emt 0:00:04]} 4. Nf3 {[%emt 0:03:57]} Bg4 {[%emt 0:00:06]} 5. h3 {[%emt 0:01:45]} Bh5 {[%emt 0:00:04]} 6. Be3 {[%emt 0:01:07]} e6 {[%emt 0:00:12]} 7. Bd3 {[%emt 0:01:22]} d5 {[%emt 0:00:14]} 8. O-O {[%emt 0:03:35]} Be7 {[%emt 0:01:30]} 9. Qe2 {[%emt 0:13:50]} Bg6 {[%emt 0:03:18]} 10. Bf4 {[%emt 0:10:22]} O-O {[%emt 0:01:53]} 11. Rad1 {[%emt 0:01:19]} Qb6 {[%emt 0:02:24]} 12. e5 {[%emt 0:02:14]} Nfd7 {[%emt 0:02:13]} 13. Bxg6 {[%emt 0:00:31]} fxg6 {[%emt 0:02:47]} 14. Bg5 {[%emt 0:02:57]} Qd8 {[%emt 0:00:57]} 15. h4 {[%emt 0:02:36]} Na6 {[%emt 0:05:15]} 16. Qd2 {[%emt 0:05:31]} h6 {[%emt 0:01:32]} 17. Bxe7 {[%emt 0:00:09]} Qxe7 {[%emt 0:00:05]} 18. Ne2 {[%emt 0:01:50]} Nb6 {[%emt 0:09:59]} 19. b3 {[%emt 0:00:57]} Rac8 {[%emt 0:03:43]} 20. a4 {[%emt 0:01:16]} Nd7 {[%emt 0:06:04]} 21. c4 {[%emt 0:05:35]} Nb4 {[%emt 0:01:49]} 22. Nf4 {[%emt 0:01:18]} Qf7 {[%emt 0:06:04]} 23. Qxb4 {[%emt 0:01:08]} Qxf4 {[%emt 0:00:05]} 24. Qxb7 {[%emt 0:01:21]} Nb8 {[%emt 0:02:44]} 25. Qb4 {[%emt 0:12:33]} Rf7 {[%emt 0:02:49]} 26. Rd3 {[%emt 0:02:13]} Rcf8 {[%emt 0:01:15]} 27. Qc3 {[%emt 0:00:26]} Qg4 {[%emt 0:04:43]} 28. c5 {[%emt 0:10:55]} Rf5 {[%emt 0:02:10]} 29. b4 {[%emt 0:01:23]} Rh5 {[%emt 0:00:40]} 30. g3 {[%emt 0:01:40]} Qf5 {[%emt 0:08:14]} 31. Nh2 {[%emt 0:00:39]} Qf7 {[%emt 0:00:02]} 32. Rf3 {[%emt 0:00:55]} Rf5 {[%emt 0:00:12]} 33. Rxf5 {[%emt 0:00:11]} gxf5 {[%emt 0:00:27]} 34. f4 {[%emt 0:03:50]} a6 {[%emt 0:01:23]} 35. Kg2 {[%emt 0:00:20]} Qh5 {[%emt 0:01:21]} 36. Qf3 {[%emt 0:00:20]} Qe8 {[%emt 0:00:05]} 37. Rb1 {[%emt 0:00:27]} Rf7 {[%emt 0:00:08]} 38. Nf1 {[%emt 0:00:15]} Rb7 {[%emt 0:00:15]} 39. Qe2 {[%emt 0:00:29]} g5 {[%emt 0:01:13]} 40. hxg5 {[%emt 0:01:08]} hxg5 {[%emt 0:00:06]} 41. fxg5 {[%emt 0:18:03]} Rg7 {[%emt 0:15:51]} 42. Nd2 {[%emt 0:00:55]} Qg6 {[%emt 0:00:49]} 43. Qe3 {[%emt 0:01:33]} Qxg5 {[%emt 0:00:37]} 44. Qxg5 {[%emt 0:00:05]} Rxg5 {[%emt 0:00:04]} 45. Kf3 {[%emt 0:00:28]} Rh5 {[%emt 0:01:31]} 46. Kg2 {[%emt 0:01:30]} Rg5 {[%emt 0:00:14]} 47. Rf1 {[%emt 0:00:21]} Rg4 {[%emt 0:01:05]} 48. Rf4 {[%emt 0:00:25]} Rg7 {[%emt 0:00:03]} 49. Rf3 {[%emt 0:01:17]} Rg4 {[%emt 0:02:16]} 50. Nb3 {[%emt 0:00:39]} Rg7 {[%emt 0:00:27]} 51. Na5 {[%emt 0:00:58]} Ra7 {[%emt 0:03:48]} 52. Rf4 {[%emt 0:00:26]} Rc7 {[%emt 0:03:52]} 53. Rh4 {[%emt 0:00:12]} Kg7 {[%emt 0:00:07]} 54. Kf3 {[%emt 0:00:04]} Nd7 {[%emt 0:00:10]} 55. Kf4 {[%emt 0:00:47]} Nf8 {[%emt 0:00:25]} 56. Rh5 {[%emt 0:00:42]} Ng6+ {[%emt 0:02:36]} 57. Kg5 {[%emt 0:00:14]} Nh8 {[%emt 0:01:05]} 58. Rxh8 {[%emt 0:00:00]} Kxh8 {[%emt 0:00:00]} 59. Kf6 {[%emt 0:00:00]} Rg7 {[%emt 0:00:00]} 60. Kxe6 {[%emt 0:00:00]} Rxg3 {[%emt 0:00:00]} 61. Kxf5 {[%emt 0:00:00]} Kg7 {[%emt 0:00:00]} 62. Ke6 {[%emt 0:00:00]} Ra3 {[%emt 0:23:18]} 63. Nxc6 {[%emt 0:00:00]} Rxa4 {[%emt 0:00:00]} 64. Kxd5 {[%emt 0:00:00]} Kf7 {[%emt 0:00:00]} 65. Kd6 {[%emt 0:00:00]} Ke8 {[%emt 0:00:00]} 66. d5 {[%emt 0:00:00]} Ra1 {[%emt 0:00:00]} 67. Kc7 {[%emt 0:00:00]} Rh1 {[%emt 0:00:00]} 68. d6 {[%emt 0:00:00]} Rh7+ {[%emt 0:00:00]} 69. Kc8 {[%emt 0:00:00]} 1-0

[Event "DSAM Bad Wildungen 2024"]
[Site "Bad Wildungen"]
[Date "2024.08.02"]
[Round "4.12"]
[White "Heck, Norbert"]
[Black "Tueckmantel, Rene"]
[Result "1/2-1/2"]
[Annotator "ChessBase"]
[ECO "D11"]
[WhiteElo "2099"]
[BlackElo "2057"]
[PlyCount "73"]
[EventDate "2024.07.31"]
[EventCountry "GER"]
[SourceTitle "playchess.com"]
[Source "ChessBase"]
[SourceQuality "1"]
[TimeControl "40/5400+30:900+30"]

1. c4 {[%emt 0:00:04]} c6 {[%emt 0:00:32]} 2. Nf3 {[%emt 0:00:52]} Nf6 {[%emt 0:00:32]} 3. d4 {[%emt 0:00:12]} d5 {[%emt 0:00:12]} 4. Nbd2 {[%emt 0:00:07]} Bf5 {[%emt 0:00:39]} 5. Nh4 {[%emt 0:00:12]} e6 {[%emt 0:00:31]} 6. Qb3 {[%emt 0:00:49]} Qd7 {[%emt 0:00:33]} 7. e3 {[%emt 0:02:13]} Bd6 {[%emt 0:03:15]} 8. g3 {[%emt 0:01:17]} Bg6 {[%emt 0:12:07]} 9. Bg2 {[%emt 0:00:25]} O-O {[%emt 0:00:42]} 10. Nxg6 {[%emt 0:00:09]} hxg6 {[%emt 0:00:13]} 11. O-O {[%emt 0:02:31]} Qc7 {[%emt 0:00:53]} 12. Qc2 {[%emt 0:00:48]} Nbd7 {[%emt 0:00:44]} 13. f4 {[%emt 0:02:22]} c5 {[%emt 0:04:24]} 14. cxd5 {[%emt 0:01:27]} exd5 {[%emt 0:01:02]} 15. Nf3 {[%emt 0:00:49]} Qb6 {[%emt 0:09:37]} 16. Bd2 {[%emt 0:00:41]} cxd4 {[%emt 0:01:33]} 17. Nxd4 {[%emt 0:00:40]} Rac8 {[%emt 0:01:35]} 18. Qb3 {[%emt 0:00:43]} Ne4 {[%emt 0:01:57]} 19. Rfd1 {[%emt 0:01:09]} Qxb3 {[%emt 0:04:25]} 20. axb3 {[%emt 0:00:14]} Bc5 {[%emt 0:03:00]} 21. Bxe4 {[%emt 0:00:48]} dxe4 {[%emt 0:00:26]} 22. Bc3 {[%emt 0:01:03]} Nf6 {[%emt 0:01:46]} 23. Rd2 {[%emt 0:08:40]} Rfd8 {[%emt 0:02:29]} 24. h3 {[%emt 0:03:27]} Nd5 {[%emt 0:04:54]} 25. Kf2 {[%emt 0:00:08]} a6 {[%emt 0:04:30]} 26. Rad1 {[%emt 0:08:51]} Nb4 {[%emt 0:08:03]} 27. Bxb4 {[%emt 0:04:38]} Bxb4 {[%emt 0:00:01]} 28. Re2 {[%emt 0:00:15]} Rd5 {[%emt 0:02:02]} 29. Ra1 {[%emt 0:01:43]} Rdc5 {[%emt 0:04:01]} 30. g4 {[%emt 0:01:58]} a5 {[%emt 0:03:31]} 31. h4 {[%emt 0:04:41]} Rc1 {[%emt 0:03:41]} 32. Rxc1 {[%emt 0:00:09]} Rxc1 {[%emt 0:00:00]} 33. Rc2 {[%emt 0:04:56]} Rh1 {[%emt 0:07:43]} 34. Kg2 {[%emt 0:01:18]} Re1 {[%emt 0:01:20]} 35. Kf2 {[%emt 0:00:23]} Rh1 {[%emt 0:00:07]} 36. Kg2 {[%emt 0:00:06]} Re1 {[%emt 0:00:16]} 37. Kf2 {[%emt 0:00:06]} 1/2-1/2

[Event "DSAM Bad Wildungen 2024"]
[Site "Bad Wildungen"]
[Date "2024.08.02"]
[Round "4.13"]
[White "Belz, Frank-Martin"]
[Black "Meier, David Geffrey"]
[Result "1-0"]
[Annotator "ChessBase"]
[ECO "A26"]
[WhiteElo "2015"]
[BlackElo "2105"]
[PlyCount "71"]
[EventDate "2024.07.31"]
[EventCountry "GER"]
[SourceTitle "playchess.com"]
[Source "ChessBase"]
[SourceQuality "1"]
[TimeControl "40/5400+30:900+30"]

1. Nf3 {[%emt 0:00:02]} f5 {[%emt 0:00:33]} 2. c4 {[%emt 0:00:08]} Nf6 {[%emt 0:00:15]} 3. g3 {[%emt 0:00:05]} g6 {[%emt 0:00:12]} 4. Bg2 {[%emt 0:00:36]} Bg7 {[%emt 0:00:10]} 5. Nc3 {[%emt 0:00:09]} d6 {[%emt 0:00:18]} 6. d3 {[%emt 0:01:37]} O-O {[%emt 0:01:15]} 7. O-O {[%emt 0:00:07]} Nc6 {[%emt 0:01:18]} 8. Rb1 {[%emt 0:00:55]} e5 {[%emt 0:01:14]} 9. Bd2 {[%emt 0:09:05]} h6 {[%emt 0:04:18]} 10. b4 {[%emt 0:01:05]} g5 {[%emt 0:00:25]} 11. b5 {[%emt 0:01:01]} Ne7 {[%emt 0:02:39]} 12. c5 {[%emt 0:16:26]} Ng6 {[%emt 0:01:01]} 13. cxd6 {[%emt 0:05:49]} cxd6 {[%emt 0:01:15]} 14. b6 {[%emt 0:02:16]} a6 {[%emt 0:13:43]} 15. Qb3+ {[%emt 0:02:24]} Kh8 {[%emt 0:00:22]} 16. Na4 {[%emt 0:08:56]} Qe7 {[%emt 0:03:21]} 17. Bb4 {[%emt 0:01:26]} Be6 {[%emt 0:01:02]} 18. Qa3 {[%emt 0:00:35]} Rfd8 {[%emt 0:00:18]} 19. Rbc1 {[%emt 0:01:23]} Nd5 {[%emt 0:06:30]} 20. Ba5 {[%emt 0:46:25]} Qe8 {[%emt 0:13:58]} 21. Nd2 {[%emt 0:00:00]} Qb5 {[%emt 0:03:40]} 22. Nc3 {[%emt 0:00:00]} Nxc3 {[%emt 0:01:06]} 23. Rxc3 {[%emt 0:00:00]} d5 {[%emt 0:02:29]} 24. Rb1 {[%emt 0:00:00]} Qe8 {[%emt 0:06:43]} 25. Rc7 {[%emt 0:00:00]} Rd7 {[%emt 0:05:02]} 26. Rbc1 {[%emt 0:00:00]} e4 {[%emt 0:03:32]} 27. Nb3 {[%emt 0:00:00]} Be5 {[%emt 0:05:51]} 28. Nc5 {[%emt 0:00:00]} Rxc7 {[%emt 0:13:34]} 29. bxc7 {[%emt 0:00:00]} b5 {[%emt 0:01:23]} 30. Nxe6 {[%emt 0:00:00]} Qxe6 {[%emt 0:00:24]} 31. Qc5 {[%emt 0:00:00]} Ne7 {[%emt 0:00:48]} 32. Bb4 {[%emt 0:00:00]} Bf6 {[%emt 0:01:38]} 33. g4 {[%emt 0:00:00]} fxg4 {[%emt 0:04:37]} 34. dxe4 {[%emt 0:00:00]} dxe4 {[%emt 0:00:24]} 35. Rd1 {[%emt 0:00:43]} Kg7 {[%emt 0:02:42]} 36. Rd6 {[%emt 0:07:17]} 1-0

[Event "DSAM Bad Wildungen 2024"]
[Site "Bad Wildungen"]
[Date "2024.08.02"]
[Round "4.14"]
[White "Pixa, Richard"]
[Black "Gaertner, Michael"]
[Result "1/2-1/2"]
[Annotator "ChessBase"]
[ECO "C41"]
[WhiteElo "2099"]
[BlackElo "2037"]
[PlyCount "64"]
[EventDate "2024.07.31"]
[EventCountry "GER"]
[SourceTitle "playchess.com"]
[Source "ChessBase"]
[SourceQuality "1"]
[TimeControl "40/5400+30:900+30"]

1. e4 {[%emt 0:00:02]} d6 {[%emt 0:00:07]} 2. d4 {[%emt 0:00:09]} Nf6 {[%emt 0:00:04]} 3. Nc3 {[%emt 0:00:17]} Nbd7 {[%emt 0:00:05]} 4. Be3 {[%emt 0:01:06]} e5 {[%emt 0:00:05]} 5. Nf3 {[%emt 0:00:45]} Be7 {[%emt 0:00:12]} 6. Bc4 {[%emt 0:00:28]} h6 {[%emt 0:00:18]} 7. O-O {[%emt 0:01:01]} c6 {[%emt 0:00:04]} 8. a4 {[%emt 0:00:21]} a5 {[%emt 0:00:15]} 9. Re1 {[%emt 0:00:39]} Qc7 {[%emt 0:00:06]} 10. h3 {[%emt 0:01:25]} g5 {[%emt 0:02:34]} 11. Nh2 {[%emt 0:06:02]} Nf8 {[%emt 0:00:26]} 12. Nf1 {[%emt 0:07:06]} Ng6 {[%emt 0:00:20]} 13. Ng3 {[%emt 0:02:24]} Nf4 {[%emt 0:07:16]} 14. Bxf4 {[%emt 0:07:38]} gxf4 {[%emt 0:01:07]} 15. Nf5 {[%emt 0:03:21]} Rh7 {[%emt 0:00:42]} 16. Qd3 {[%emt 0:07:09]} Be6 {[%emt 0:11:26]} 17. d5 {[%emt 0:08:32]} Bxf5 {[%emt 0:01:33]} 18. exf5 {[%emt 0:00:10]} Rg7 {[%emt 0:01:08]} 19. Ne4 {[%emt 0:04:47]} Nxe4 {[%emt 0:27:02]} 20. Qxe4 {[%emt 0:00:43]} Kd7 {[%emt 0:02:24]} 21. Ra3 {[%emt 0:10:04]} Rag8 {[%emt 0:03:08]} 22. Bf1 {[%emt 0:00:18]} Bh4 {[%emt 0:07:43]} 23. Re2 {[%emt 0:03:31]} Qb6 {[%emt 0:13:46]} 24. Rb3 {[%emt 0:02:00]} Qa7 {[%emt 0:00:08]} 25. dxc6+ {[%emt 0:08:33]} bxc6 {[%emt 0:00:07]} 26. Rd2 {[%emt 0:00:14]} Rg3 {[%emt 0:02:15]} 27. Qxe5 {[%emt 0:01:48]} Qxf2+ {[%emt 0:05:53]} 28. Rxf2 {[%emt 0:12:44]} dxe5 {[%emt 0:00:07]} 29. Rff3 {[%emt 0:00:24]} Rxf3 {[%emt 0:01:11]} 30. Rxf3 {[%emt 0:00:10]} Rg3 {[%emt 0:04:16]} 31. Bd3 {[%emt 0:03:23]} Kd6 {[%emt 0:00:57]} 32. Be4 {[%emt 0:01:13]} Rxf3 {[%emt 0:00:37]} 1/2-1/2

[Event "DSAM Bad Wildungen 2024"]
[Site "Bad Wildungen"]
[Date "2024.08.02"]
[Round "4.15"]
[White "Derr, Oleg"]
[Black "Lu, Yunong Elias"]
[Result "1/2-1/2"]
[Annotator "ChessBase"]
[ECO "C42"]
[WhiteElo "1947"]
[BlackElo "1996"]
[PlyCount "41"]
[EventDate "2024.07.31"]
[EventCountry "GER"]
[SourceTitle "playchess.com"]
[Source "ChessBase"]
[SourceQuality "1"]
[TimeControl "40/5400+30:900+30"]

1. e4 {[%emt 0:00:01]} e5 {[%emt 0:00:03]} 2. Nf3 {[%emt 0:00:05]} Nf6 {[%emt 0:00:04]} 3. Nxe5 {[%emt 0:00:19]} d6 {[%emt 0:00:03]} 4. Nf3 {[%emt 0:00:09]} Nxe4 {[%emt 0:00:03]} 5. Nc3 {[%emt 0:00:09]} Nxc3 {[%emt 0:00:13]} 6. dxc3 {[%emt 0:00:13]} Be7 {[%emt 0:00:06]} 7. Be3 {[%emt 0:00:06]} Be6 {[%emt 0:00:18]} 8. Be2 {[%emt 0:03:46]} Nc6 {[%emt 0:02:00]} 9. Qd2 {[%emt 0:01:50]} a6 {[%emt 0:01:06]} 10. a3 {[%emt 0:01:34]} Qd7 {[%emt 0:00:11]} 11. Nd4 {[%emt 0:00:41]} Ne5 {[%emt 0:03:28]} 12. Nxe6 {[%emt 0:01:28]} Qxe6 {[%emt 0:00:30]} 13. h3 {[%emt 0:04:13]} Nc4 {[%emt 0:00:28]} 14. Bxc4 {[%emt 0:00:45]} Qxc4 {[%emt 0:00:03]} 15. Qd3 {[%emt 0:00:32]} Qc6 {[%emt 0:02:33]} 16. O-O {[%emt 0:01:44]} O-O {[%emt 0:03:37]} 17. Rad1 {[%emt 0:01:42]} Rae8 {[%emt 0:00:42]} 18. Rfe1 {[%emt 0:01:19]} Bd8 {[%emt 0:00:22]} 19. Bd4 {[%emt 0:01:34]} Re6 {[%emt 0:03:18]} 20. Re3 {[%emt 0:03:00]} Rxe3 {[%emt 0:01:27]} 21. Bxe3 {[%emt 0:00:48]} 1/2-1/2

[Event "DSAM Bad Wildungen 2024"]
[Site "Bad Wildungen"]
[Date "2024.08.02"]
[Round "4.16"]
[White "Muendoerfer, Sebastian"]
[Black "Bender, Wolfgang"]
[Result "1/2-1/2"]
[Annotator "ChessBase"]
[ECO "B13"]
[WhiteElo "1988"]
[BlackElo "1923"]
[PlyCount "50"]
[EventDate "2024.07.31"]
[EventCountry "GER"]
[SourceTitle "playchess.com"]
[Source "ChessBase"]
[SourceQuality "1"]
[TimeControl "40/5400+30:900+30"]

1. e4 {[%emt 0:00:03]} d5 {[%emt 0:00:09]} 2. exd5 {[%emt 0:00:15]} Nf6 {[%emt 0:00:09]} 3. c4 {[%emt 0:00:54]} c6 {[%emt 0:00:12]} 4. d4 {[%emt 0:00:45]} cxd5 {[%emt 0:00:19]} 5. Nf3 {[%emt 0:00:28]} Nc6 {[%emt 0:00:32]} 6. Nc3 {[%emt 0:00:48]} Bg4 {[%emt 0:02:32]} 7. cxd5 {[%emt 0:07:08]} Nxd5 {[%emt 0:02:27]} 8. Bc4 {[%emt 0:01:29]} e6 {[%emt 0:24:38]} 9. Bb5 {[%emt 0:17:24]} Bb4 {[%emt 0:06:55]} 10. Bd2 {[%emt 0:09:08]} O-O {[%emt 0:01:58]} 11. Bxc6 {[%emt 0:05:19]} bxc6 {[%emt 0:01:34]} 12. h3 {[%emt 0:01:36]} Bh5 {[%emt 0:01:31]} 13. O-O {[%emt 0:01:34]} Rb8 {[%emt 0:05:49]} 14. g4 {[%emt 0:05:39]} Bg6 {[%emt 0:00:33]} 15. Ne5 {[%emt 0:01:36]} Bxc3 {[%emt 0:11:42]} 16. bxc3 {[%emt 0:02:01]} Qh4 {[%emt 0:01:20]} 17. Kh2 {[%emt 0:11:21]} Rb2 {[%emt 0:02:22]} 18. Nf3 {[%emt 0:10:46]} Qe7 {[%emt 0:02:41]} 19. c4 {[%emt 0:01:57]} Nb6 {[%emt 0:00:36]} 20. Ne5 {[%emt 0:01:51]} Be4 {[%emt 0:04:32]} 21. f3 {[%emt 0:03:36]} Rd8 {[%emt 0:10:33]} 22. fxe4 {[%emt 0:09:45]} Rxd4 {[%emt 0:00:25]} 23. Qf3 {[%emt 0:02:14]} Rdxd2+ {[%emt 0:01:23]} 24. Kh1 {[%emt 0:00:44]} Rh2+ {[%emt 0:00:27]} 25. Kg1 {[%emt 0:00:08]} Qc5+ {[%emt 0:00:23]} 1/2-1/2

[Event "DSAM Bad Wildungen 2024"]
[Site "Bad Wildungen"]
[Date "2024.08.02"]
[Round "4.17"]
[White "Helms, Sven"]
[Black "Pick, Max"]
[Result "0-1"]
[Annotator "ChessBase"]
[ECO "C84"]
[WhiteElo "1960"]
[BlackElo "1906"]
[PlyCount "73"]
[EventDate "2024.07.31"]
[EventCountry "GER"]
[SourceTitle "playchess.com"]
[Source "ChessBase"]
[SourceQuality "1"]
[TimeControl "40/5400+30:900+30"]

1. e4 {[%emt 0:00:02]} e5 {[%emt 0:00:23]} 2. Nf3 {[%emt 0:00:06]} Nc6 {[%emt 0:00:41]} 3. Bb5 {[%emt 0:00:05]} a6 {[%emt 0:00:43]} 4. Ba4 {[%emt 0:00:06]} Nf6 {[%emt 0:01:03]} 5. d3 {[%emt 0:00:06]} b5 {[%emt 0:01:03]} 6. Bb3 {[%emt 0:00:07]} Be7 {[%emt 0:01:38]} 7. a4 {[%emt 0:00:22]} Bb7 {[%emt 0:03:33]} 8. O-O {[%emt 0:00:09]} d6 {[%emt 0:00:56]} 9. Nc3 {[%emt 0:00:13]} b4 {[%emt 0:02:56]} 10. Ne2 {[%emt 0:00:08]} O-O {[%emt 0:06:05]} 11. Ng3 {[%emt 0:01:11]} Bc8 {[%emt 0:02:30]} 12. c3 {[%emt 0:10:53]} bxc3 {[%emt 0:05:26]} 13. bxc3 {[%emt 0:00:23]} Na5 {[%emt 0:05:00]} 14. Bc2 {[%emt 0:03:20]} c5 {[%emt 0:00:28]} 15. d4 {[%emt 0:17:14]} Qc7 {[%emt 0:01:14]} 16. h3 {[%emt 0:11:11]} h6 {[%emt 0:02:53]} 17. Qe2 {[%emt 0:05:14]} Re8 {[%emt 0:02:09]} 18. Be3 {[%emt 0:01:00]} Bf8 {[%emt 0:02:15]} 19. Rfc1 {[%emt 0:03:15]} g6 {[%emt 0:01:53]} 20. Rab1 {[%emt 0:04:40]} Bd7 {[%emt 0:07:27]} 21. Nd2 {[%emt 0:01:48]} Bg7 {[%emt 0:01:14]} 22. d5 {[%emt 0:06:49]} Kh7 {[%emt 0:05:21]} 23. Nc4 {[%emt 0:01:40]} Rab8 {[%emt 0:05:37]} 24. Nxa5 {[%emt 0:05:48]} Qxa5 {[%emt 0:00:09]} 25. Bd2 {[%emt 0:00:04]} Ng8 {[%emt 0:08:16]} 26. c4 {[%emt 0:01:05]} Qc7 {[%emt 0:00:31]} 27. Qe1 {[%emt 0:00:11]} Ne7 {[%emt 0:01:30]} 28. Ba5 {[%emt 0:02:37]} Qa7 {[%emt 0:00:17]} 29. Qc3 {[%emt 0:06:29]} h5 {[%emt 0:03:18]} 30. Qf3 {[%emt 0:07:31]} Kg8 {[%emt 0:01:05]} 31. Bd2 {[%emt 0:00:52]} Rxb1 {[%emt 0:02:05]} 32. Rxb1 {[%emt 0:00:05]} Rb8 {[%emt 0:00:10]} 33. Rxb8+ {[%emt 0:02:20]} Qxb8 {[%emt 0:00:09]} 34. Qb3 {[%emt 0:00:07]} Qxb3 {[%emt 0:01:12]} 35. Bxb3 {[%emt 0:00:05]} Kf8 {[%emt 0:05:18]} 36. Ne2 {[%emt 0:00:45]} f5 {[%emt 0:01:17]} 37. Nc3 {[%emt 0:04:08]} 0-1

[Event "DSAM Bad Wildungen 2024"]
[Site "Bad Wildungen"]
[Date "2024.08.02"]
[Round "4.18"]
[White "Andresen, Marc"]
[Black "Marcziter, Alex"]
[Result "0-1"]
[Annotator "ChessBase"]
[ECO "B33"]
[WhiteElo "1844"]
[BlackElo "2052"]
[PlyCount "56"]
[EventDate "2024.07.31"]
[EventCountry "GER"]
[SourceTitle "playchess.com"]
[Source "ChessBase"]
[SourceQuality "1"]
[TimeControl "40/5400+30:900+30"]

1. e4 {[%emt 0:00:05]} c5 {[%emt 0:00:08]} 2. Nf3 {[%emt 0:00:05]} Nc6 {[%emt 0:00:12]} 3. d4 {[%emt 0:00:05]} cxd4 {[%emt 0:00:06]} 4. Nxd4 {[%emt 0:00:02]} Nf6 {[%emt 0:00:08]} 5. Nc3 {[%emt 0:00:09]} e5 {[%emt 0:00:12]} 6. Nb3 {[%emt 0:04:42]} Bb4 {[%emt 0:01:49]} 7. f3 {[%emt 0:00:52]} Nxe4 {[%emt 0:12:38]} 8. fxe4 {[%emt 0:01:39]} Qh4+ {[%emt 0:00:20]} 9. Ke2 {[%emt 0:00:54]} Bxc3 {[%emt 0:07:17]} 10. bxc3 {[%emt 0:00:07]} d5 {[%emt 0:00:47]} 11. Qd3 {[%emt 0:05:40]} Bg4+ {[%emt 0:05:15]} 12. Kd2 {[%emt 0:00:05]} dxe4 {[%emt 0:03:20]} 13. g3 {[%emt 0:02:19]} Qf6 {[%emt 0:05:41]} 14. Qe3 {[%emt 0:04:59]} O-O-O+ {[%emt 0:00:59]} 15. Bd3 {[%emt 0:00:32]} exd3 {[%emt 0:02:43]} 16. cxd3 {[%emt 0:00:02]} Bf5 {[%emt 0:05:54]} 17. Nc5 {[%emt 0:08:03]} b6 {[%emt 0:08:51]} 18. Ne4 {[%emt 0:00:13]} Bxe4 {[%emt 0:00:37]} 19. Qxe4 {[%emt 0:00:02]} Qf2+ {[%emt 0:00:30]} 20. Kd1 {[%emt 0:03:40]} Rxd3+ {[%emt 0:01:45]} 21. Qxd3 {[%emt 0:00:43]} Rd8 {[%emt 0:00:12]} 22. Qxd8+ {[%emt 0:00:28]} Kxd8 {[%emt 0:00:26]} 23. Bd2 {[%emt 0:00:20]} Qf3+ {[%emt 0:04:22]} 24. Kc2 {[%emt 0:00:06]} Qe4+ {[%emt 0:00:13]} 25. Kb2 {[%emt 0:00:30]} Na5 {[%emt 0:04:01]} 26. Rad1 {[%emt 0:00:08]} Nc4+ {[%emt 0:00:45]} 27. Kc1 {[%emt 0:01:00]} Kc7 {[%emt 0:01:30]} 28. Rhe1 {[%emt 0:00:06]} Qc6 {[%emt 0:00:59]} 0-1